Cogmind - Beta 16.1 @@@ ROGUE MODE // 2026.02.19 @ 19:40:44 Player: Skergy Result: Destroyed self with Grenade Launcher Performance ------------- Evolutions (0) 0 Regions Visited (2) 400 Robots Destroyed (25) 125 Value Destroyed (750) 750 Prototype IDs (0) 0 Alien Tech Used (0) 0 Bonus (0) 0 TOTAL SCORE: 1275 Bonus ------- None Cogmind --------- Core Integrity 0/250 Matter 211/300 Energy 211/250 System Corruption 3% Temperature Cool (0) Movement Walking (190) Ox1 Location -10/Subcaves Parts ------- > --- POWER (1) -------- Ion Engine > --- PROPULSION (2) --- Aluminum Leg Aluminum Leg > --- UTILITY (2) ------ Large Storage Unit Seismic Detector > --- WEAPON (2) ------- Riot Gun Grenade Launcher > --- INVENTORY (15) --- Ion Engine Subdweller Power Source Subdweller Monowheel Subdweller Monowheel Structural Scanner Signal Interpreter Improved Terrain Scanner Targeting Computer Scrap Shield Subdweller Beam Cannon Battle Rifle Subdweller Machine Gun Mining Laser Peak State ------------ > --- POWER ------------ Ion Engine > --- PROPULSION ------- Aluminum Leg Aluminum Leg > --- UTILITY ---------- Large Storage Unit Seismic Detector > --- WEAPON ----------- Riot Gun Grenade Launcher > --- INVENTORY -------- Ion Engine Subdweller Power Source Subdweller Monowheel Subdweller Monowheel Structural Scanner Signal Interpreter Improved Terrain Scanner Targeting Computer Scrap Shield Subdweller Beam Cannon Battle Rifle Subdweller Machine Gun Mining Laser [Rating: 11] Favorites ----------- Power Ion Engine Engine Ion Engine Propulsion Light Treads Treads Light Treads Leg Aluminum Leg Wheel Subdweller Monowheel Utility Large Storage Unit Device Seismic Detector Storage Large Storage Unit Protection Light Armor Plating Weapon Small Laser Energy Gun Small Laser Launcher Grenade Launcher Special Weapon Mining Laser Build | -11 -10 -10 ------- Run | Yrd Mat Sub Slots Evolved . | . . . Power . | . . . Propulsion . | . . . Utility . | . . . Weapon . | . . . Parts Attached 21 | 8 4 9 Power 2 | 1 . 1 Engine 2 | 1 . 1 Core . | . . . Reactor . | . . . Propulsion 5 | 2 . 3 Treads 2 | 2 . . Leg 2 | . . 2 Wheel 1 | . . 1 Hover . | . . . Flight . | . . . Utility 5 | 2 3 . Device 1 | 1 . . Storage 3 | 1 2 . Processor . | . . . Hackware . | . . . Protection 1 | . 1 . Artifact . | . . . Weapon 9 | 3 1 5 Energy Gun 7 | 3 . 4 Energy Cannon . | . . . Ballistic Gun . | . . . Ballistic Cannon . | . . . Launcher 1 | . . 1 Special Weapon 1 | . 1 . Impact Weapon . | . . . Slashing Weapon . | . . . Piercing Weapon . | . . . Special Melee Weapon . | . . . Unidentified Prototypes . | . . . Parts Lost 9 | . 2 7 Power 1 | . . 1 Propulsion 2 | . . 2 Utility 1 | . . 1 Weapon 5 | . 2 3 Highest Loss Streak 6 | . 1 6 To Critical Strikes 1 | . . 1 Average Backups 10 | 2 8 12 Power 1 | . 1 1 Propulsion 2 | 1 2 2 Utility 3 | . 2 4 Weapon 2 | . 2 3 Tool/Special . | . . . Unused Backups 11 | . . 11 Power 2 | . . 2 Propulsion 1 | . . 1 Utility 5 | . . 5 Weapon 3 | . . 3 Tool/Special . | . . . Average Slot Usage (%) 98 | . 99 97 Engine 14 | . 14 14 Treads 20 | . 28 10 Leg 6 | . . 15 Device 6 | . 5 7 Storage 14 | . 14 14 Protection 6 | . 8 4 Energy Gun 17 | . 20 14 Launcher 3 | . . 7 Special Weapon 6 | . 7 6 Peak Build Rating 11 | 7 8 11 Average Rating 8 | 5 7 8 On Entrance 5 | . 7 8 Avg Prop Armor Cover (%) 9 | . . 9 Naked Turns . | . . . Heaviest Build 33 | 15 30 33 Greatest Support 40 | 40 40 40 Greatest Overweight (x) 1 | . . 1 Average Overweight (x) . | . . . Largest Inventory Capacity 15 | 8 15 15 Average Capacity 11 | 7 10 15 Most Carried 15 | 7 12 15 Average Carried 10 | 3 8 13 Final Capacity 15 | 8 15 15 Final Carried 14 | 6 12 14 Class Distribution -------------------- 92% | Mutant 7% | Scavenger-Mutant Dominant Class ---------------- Mutant | -10/Materials Mutant | -10/Subcaves Resources | -11 -10 -10 ----------- Run | Yrd Mat Sub Matter Collected 545 | 280 79 186 Remotely . | . . . Salvage Created 873 | 128 445 300 Parts 58 | 7 30 21 Haulers Intercepted . | . . . Recyclers Shooed 1 | . 1 . Parts Field Recycled . | . . . Retrieved Matter . | . . . Parts Self-Destructed 9 | . . 9 Prevented . | . . . Parts Restored . | . . . Kills | -11 -10 -10 ------- Run | Yrd Mat Sub Combat Hostiles Destroyed 20 | . 11 9 Guns 14 | . 10 4 AOE 6 | . 1 5 Classes Destroyed 6 | 2 3 1 Tunneler 2 | 2 . . Recycler 1 | 1 . . Watcher 2 | . 2 . Swarmer 3 | . 3 . Grunt 8 | . 8 . Subdweller 9 | . . 9 Best Kill Streak 4 | 3 4 2 Combat Bots Only 4 | . 4 2 Max Kills in Single Turn 2 | 1 1 2 Gunslinging . | . . . Exploded 2 | . 1 2 Melee . | . . . Uniques/NPCs Destroyed . | . . . Combat | -11 -10 -10 -------- Run | Yrd Mat Sub Hostile Shots Fired 94 | . 48 46 Missed 23 | . 11 12 Hits 71 | . 37 34 Projectile 71 | . 37 34 Critical Strikes 3 | . 1 2 Damage Taken 1249 | . 436 813 Core 259 | . 71 188 Absorbed by Shields . | . . . Core Remaining (%) 100 | 100 . . Volleys Fired 101 | 5 38 58 Largest 2 | 2 2 2 Hottest 140 | 80 140 100 Shots Fired 169 | 10 76 83 Gun 127 | 10 71 46 Cannon . | . . . Launcher 7 | . . 7 Special 35 | . 5 30 Kinetic . | . . . Thermal 93 | . 30 63 Explosive 7 | . . 7 Electromagnetic 69 | 10 46 13 Robot Hit Streak 11 | 4 9 11 Robot Miss Streak 4 | 1 4 1 Penetration Max . | . . . Secondary Targets 2 | . 2 . Max Gunslinging Chain 1 | . 1 . Shots Hit Robots 87 | 6 43 38 Core Hits 43 | 3 22 18 Critical Kills . | . . . Critical Parts Destroyed . | . . . Critical Strikes . | . . . Melee Attacks . | . . . Impact . | . . . Slashing . | . . . Piercing . | . . . Sneak Attacks . | . . . Combat Hostiles . | . . . Follow-up Attacks . | . . . Damage Inflicted 1681 | 79 621 981 Guns 1029 | 79 524 426 Cannons . | . . . Explosions 628 | . 73 555 Melee . | . . . Ramming . | . . . Kinetic . | . . . Thermal 607 | . 266 341 Explosive 555 | . . 555 Electromagnetic 519 | 79 355 85 Impact . | . . . Slashing . | . . . Piercing . | . . . Highest Corruption 3 | . 3 3 Average Corruption 2 | . 2 3 Corruption Purged . | . . . Corruption Blocked . | . . . Effects 34 | . 12 22 Message Errors 12 | . 6 6 Matter Fused 11 | . 3 8 Heat Flow Errors 4 | . 1 3 Energy Discharges 3 | . 1 2 Data Loss (minor) 3 | . 1 2 Data Loss (major) 1 | . . 1 Overload Shots . | . . . Overflow Damage 17 | . 17 . Projectiles . | . . . Explosions 17 | . 17 . Melee . | . . . Knockbacks . | . . . Impact . | . . . Kinetic . | . . . Secondary . | . . . Self-Inflicted Damage 143 | . 36 107 Shots 5 | . 1 4 Rammed . | . . . Targets Rammed . | . . . Kicked . | . . . Crushed . | . . . Highest Temperature 194 | 54 166 194 Average Temperature 55 | 23 55 76 Received Heat Transfer 336 | . 195 141 Siege Activations . | . . . Martial Activations . | . . . Shielding Activations . | . . . Robots Disrupted . | . . . Combat Hostiles . | . . . Robots Corrupted . | . . . Combat Hostiles . | . . . Parts Fried 1 | . 1 . Impact Corruptions . | . . . Robots Melted . | . . . Combat Hostiles . | . . . Parts Melted . | . . . Heat Transferred 1125 | . 525 600 Parts Sabotaged . | . . . Parts Stolen . | . . . Parts Stripped . | . . . Power Chain Reactions 2 | . 2 . Alert | -11 -10 -10 ------- Run | Yrd Mat Sub Maximum Alert Level . | . . . Low Security (%) 100 | 100 100 . Level 1 . | . . . Level 2 . | . . . Level 3 . | . . . Level 4 . | . . . Level 5 . | . . . High Security . | . . . Max Security . | . . . Peak Influence 97 | 5 97 . Initial . | . . . Average 23 | 1 24 . Influence Increases 352 | 15 337 . Destroy 0b10 Robot/C 220 | . 220 . Destroy 0b10 Robot/NC 25 | 15 10 . Destroy Leader 74 | . 74 . Successful Hack 10 | . 10 . Disable Machine 15 | . 15 . Destroy Structure 8 | . 8 . Influence Decreases 352 | 15 337 . Time Decay 342 | 15 327 . Lost Part 10 | . 10 . Squads Dispatched 4 | . 4 . Investigation 1 | . 1 . Extermination . | . . . Reinforcement 3 | . 3 . Assault . | . . . Garrison . | . . . Intercept . | . . . Searches Triggered . | . . . Construction Impeded . | . . . Haulers Reinforced . | . . . Active Scanning Responses . | . . . Cargo Convoy Interrupts . | . . . Stealth | -11 -10 -10 --------- Run | Yrd Mat Sub Distress Signals 1 | . 1 . Communications Jammed . | . . . Distress Signals . | . . . Times Spotted 27 | . 18 9 Peak Tracking Total 3 | . 3 2 Tactical Retreats . | . . . Traps | -11 -10 -10 ------- Run | Yrd Mat Sub Traps Triggered 2 | . 2 . Indirectly . | . . . Trap Hack Attempts . | . . . Triggered . | . . . Disarmed . | . . . Reprogrammed . | . . . Reused . | . . . Traps Extracted . | . . . Installed . | . . . Triggered . | . . . Machines | -11 -10 -10 ---------- Run | Yrd Mat Sub Machines Disabled 1 | . 1 . Max in Single Turn 1 | . 1 . Machines Repaired . | . . . Machines Dismantled . | . . . Machines Sabotaged . | . . . Overloaded Fab Kills . | . . . Hacking | -11 -10 -10 --------- Run | Yrd Mat Sub Machines Accessed 6 | . 6 . Terminals 5 | . 5 . Fabricators . | . . . Repair Stations . | . . . Recycling Units 1 | . 1 . Scanalyzers . | . . . Garrison Access . | . . . Total Hacks 20 | . 20 . Successful 7 | . 7 . Failed 13 | . 13 . Catastrophic 3 | . 3 . Database Lockouts . | . . . Manual 16 | . 16 . Terminals 13 | . 13 . Fabricators . | . . . Repair Stations . | . . . Recycling Units 7 | . 7 . Scanalyzers . | . . . Garrison Access . | . . . Terminal Hacks . | . . . Fabricator Hacks . | . . . Repair Station Hacks . | . . . Recycling Unit Hacks 2 | . 2 . Report Inventory 1 | . 1 . Retrieve Components 1 | . 1 . Scanalyzer . | . . . Garrison Access Hacks . | . . . Unauthorized Hacks 5 | . 5 . Terminals 2 | . 2 . Botnet 2 | . 2 . Fabricators . | . . . Repair Stations . | . . . Recycling Units 3 | . 3 . Reject 1 | . 1 . Recyclers 1 | . 1 . Mask 1 | . 1 . Scanalyzers . | . . . Garrison Access . | . . . Data Cores Recovered . | . . . Used . | . . . Hacking Detections 6 | . 6 . Full Trace Events 1 | . 1 . Feedback Events . | . . . Feedback Blocked . | . . . Robot Schematics Acquired . | . . . Robots Built . | . . . Authchips . | . . . Time . | . . . Total Robot Build Rating . | . . . Part Schematics Acquired . | . . . Parts Built . | . . . Authchips . | . . . Time . | . . . Total Part Build Rating . | . . . Part Studies Acquired . | . . . Parts Repaired . | . . . Time . | . . . Parts Recycled . | . . . Recycled Matter . | . . . Retrieved Matter . | . . . Retrieved Components 9 | . 9 . Parts Scanalyzed . | . . . Part Schematics Acquired . | . . . Parts Damaged . | . . . Bothacking | -11 -10 -10 ------------ Run | Yrd Mat Sub Used RIF Installer . | . . . Robots Hacked . | . . . Non-combat . | . . . Combat . | . . . Robot Hacks Applied . | . . . Relay Couplers Released . | . . . Fabnet Peak Effective % . | . . . Robots Rewired . | . . . Allies Hacked . | . . . Hacks Repelled . | . . . Allies | -11 -10 -10 -------- Run | Yrd Mat Sub Total Allies . | . . . Largest Group . | . . . Highest-Rated Group . | . . . Highest-Rated Ally . | . . . Total Orders . | . . . Ally Attacks . | . . . Total Damage . | . . . Kills . | . . . Allies Corrupted . | . . . Allies Melted . | . . . Intel | -11 -10 -10 ------- Run | Yrd Mat Sub Active Infowar (turns) 1158 | 14 591 553 Seismic 1158 | 14 591 553 Robot Analysis Total . | . . . Derelict Logs Recovered 2 | . . 2 Drone Launches . | . . . Drone Recoveries . | . . . Exploration | -11 -10 -10 ------------- Run | Yrd Mat Sub Turns Passed 2740 | 106 1527 1107 Spaces Moved 1311 | 49 777 485 Core 7 | 7 . . Treads 984 | 42 777 165 Legs 216 | . . 216 Wheels 104 | . . 104 Hover . | . . . Flight . | . . . Fastest Speed 50 | 50 160 120 Average Speed 161 | 144 160 164 Slowest Speed 190 | 160 160 190 Overloaded Moves . | . . . Propulsion Burnouts . | . . . Robots Hopped . | . . . Potential Cave-ins . | . . . Cave-ins Triggered . | . . . Exploration Rate (%) 45 | 4 94 39 Regions Visited 2 Branch Regions 1 Pre-discovered Areas 1 | . . 1 Known Exits Taken . | . . . Unknown Exits Taken 2 | 1 1 . Scrap Searched 2 | . . 2 Spaces Dug . | . . . Terrain Destroyed 47 | . 6 41 Melee . | . . . Projectile 2 | . 2 . AOE 45 | . 4 41 Terrain Rammed . | . . . Walls Destroyed . | . . . Machines Disabled . | . . . Actions | -11 -10 -10 --------- Run | Yrd Mat Sub Total 1694 | 72 974 648 Wait 224 | 3 143 78 Move 1309 | 48 776 485 Hop . | . . . Pick Up 24 | 7 8 9 Fast Attach 6 | 6 . . Attach 11 | 2 2 7 Detach 1 | 1 . . Swap 15 | . 5 10 Drop 3 | . 2 1 Fire 101 | 5 38 58 Melee . | . . . Ram . | . . . Kick . | . . . Crush . | . . . Escape Stasis . | . . . Rewire . | . . . Trap . | . . . Miscellaneous . | . . . Route ------- -11/Scrapyard -10/Materials (discovered 6 exits: [*Mat x3] / [*Min x2] / *Sub) -10/Subcaves (discovered 3 exits: [*Mat x2] / Rec) History --------- Turn | Location | Event 9 | -11/Scrapyard | Discovered new exit (range 15) 107 | -11/Scrapyard | Entered Materials 323 | -10/Materials | Build established: Mutant 675 | -10/Materials | Discovered new exit (range 16) 757 | -10/Materials | Discovered new exit (range 13) 886 | -10/Materials | Discovered new exit (range 6) 1122 | -10/Materials | Discovered new exit (range 16) 1347 | -10/Materials | Discovered new exit (range 16) 1626 | -10/Materials | Discovered new exit (range 6) 1634 | -10/Materials | Entered Subcaves 1635 | -10/Subcaves | Approached by a straggling Scientist 1652 | -10/Subcaves | Discovered new exit (range 12) 1769 | -10/Subcaves | Identified exit to Recycling 1780 | -10/Subcaves | Learned location of Storage (-8) 1866 | -10/Subcaves | Core integrity fell below 50% 2056 | -10/Subcaves | A swath of the cavern ceiling suddenly collapsed 2061 | -10/Subcaves | Lost 6 parts (1p2n1u2w) 2160 | -10/Subcaves | Core integrity fell below 20% 2252 | -10/Subcaves | Disturbed a concealed Subdweller 2433 | -10/Subcaves | Shifting Twisted Machinery released Flamer 2454 | -10/Subcaves | Shifting Twisted Machinery released Riot Gun 2636 | -10/Subcaves | Discovered new exit (range 7) 2741 | -10/Subcaves | Destroyed self with Grenade Launcher Last Messages --------------- 02375_ GEV1W8JRXPOX|DV8FXU|URZ Flamer falls loose from the Twisted Machinery. Riot Gun falls loose from the Twisted Machinery. 02462_ 4ER7QGPRWIGG V/XZ,NVSSRIC3|X1J 02474_ Dropped Sml. Laser. 02474_ Acquired Riot Gun. 02515_ System corrupted: Matter fused (-8). 02566_ System corrupted: Matter fused (-5). 02587_ System corrupted: Heat flow error (+186). 02613_ System corrupted: Matter fused (-6). 02636_ EXIT=FOUND 02666_ Connecting with UFD SUBCON Station... 02666_ Current location identified: Subcaves 02675_ 33MM,R/6XZ4YBA0%Y3CIQWT4T 02682_ 62-64O(u) tweaks Twisted Machinery. 02729_ 62-64O(u) builds Twisted Machinery. 02733_ System corrupted: Matter fused (-7). 02737_ C8-1ZP(R) destroyed. 02740_ Sub. Laser destroyed. 02741_ X7-TS1(R) destroyed. Map ----- +----------------------------------------------------+ | | | | | | | ?????????????????????????????????????????????????? | | ?????????????????????????????????????????????????? | | ?????????????????????????????????????????????????? | | ?????????????????????????????????????????????????? | | ?????????????????????????????????????????????????? | | ?????????????????????????????????????????????????? | | ?????????????????????????????????????????????????? | | ?????????????????????????????????????????????????? | | ?????????????????????????????????????????????????? | | ?????????????????????????????????????????????????? | | ?????????????????????????????????????????????????? | | ????????????????????????????????????##"###???????? | | ????????????????????????????????????#" ""#???????? | | ????????????????????????????????????#X ##??????? | | ????????????????????????????###????### ##?????? | | ????????????????????????????# ###### #### ###???? | | ?????????????????????????####""""#"# ## ## #???? | | ????????????????????????##"## ### #???? | | ?????????????????????#### """ #???? | | ????????????????????## " "" #### < #???? | | ????????????????????# "" #### #???? | | ????????????????##"## * " u #?## # ###?? | | ???????????????? """" [&]@""" ## ##? | | ???????????????? """"" =% """ ## ### ## | | ?????????????????###"" " #"#### #?# # | | ???????????????????##"# ## ###??## ####?## ## | | ????????????????????####??###?????## #????## ## | | ???????????????????????????????###?# #????# ## | | ???????????????????????????????# ### ?#### | | ???????????????????????????????# #"? #### | | ???????????????????????????????#""##??# #?# | | ???????????????????????????????# ""#??? ##?# | | ???????????????????????????????## "##### #?# | | ???????????????????????????????##" # # #??# | | ??????????????????????????????## " " #?## | | ??????????????????????????????# [ # ### | | ?????????????????????????######" "##### ## | | ????????????????????????## " "#"" ""### " ## | | ????????????????????????# " ""##" ""##" " ### # | | ????????????????????????# #" ""## " #### # | | ????????????????????????#" # """| # | | ????????#####??###??????# & ## ##""" # | | ???????## #### ####???####### #### "## # | | ??????## ## ###??????# ######### # | | ?????## #??????# # # | | ???### ###????## | | ??## ##????## | +----------------------------------------------------+ Best States ------------- Heat Dissipation 25 Energy Generation 10 Energy Capacity 250 Matter Stores 300 Matter Capacity 300 Sight Range 16 Terrain Scan Density 10 Armor Coverage 150 Evasion (%) 40 Recoil Reduction 2 Item Schematics ----------------- None Robot Schematics ------------------ None Fabricated ------------ Nothing Repaired ---------- Nothing Studied --------- None Alien Tech Used ----------------- None Achievements -------------- None Challenges ------------ None Game ------ Seed CompactTeleporterCharger Manual? 0 Play Time 00:20:03 Cumulative 133.6 hours Start 2026.02.18 @ 23:53:57 End 2026.02.19 @ 19:40:44 Sessions 4 Manual Loads 0 Difficulty Rogue Special Mode None Game No. 146 Rogue 146 Adventurer 0 Explorer 0 Win Type - Total 4 Types 4/0/0/0/0/0/0/0/0/0 Lore% 69 Gallery% 53 Achievement% 42 Wizard Run 0 Options --------- Layout 1 ASCII 0 Keyboard 1 Movement Vi Keybinds 0 Fullscreen 2 Font 24/Terminus Map View 50x35 Zoom Use 0% Tactical HUD 1 Map Filters NONE Filters NONE Steam 1 RUN: c05015d0-809b-48ce-9a6c-7e6f4cb665b1